bitfinex/quotes_ETHUSD_20250428
["timestamp","ask_amount","ask_price","bid_price","bid_amount"]
[1745798978985,6.06,1780.8,1780.4,5.61670311]
[1745798979154,7.6319,1780.9,1780.4,5.61670311]
[1745798979356,7.6319,1780.9,1780.3,8.61684893]
[1745798979613,7.6319,1780.9,1780.4,5.61647168]
[1745798979788,7.61996038,1780.9,1780.6,5.61581437]
[1745798980292,7.61996038,1780.9,1780.5,8.61622785]
[1745798980799,7.61996038,1780.9,1780.3,3.0]
[1745798980958,7.61996038,1780.9,1780.5,8.61611177]
[1745798981157,7.61996038,1780.9,1780.6,5.61594501]
[1745798982285,6.06,1781.5,1780.4,3.0]
[1745798982508,11.293,1782.0,1780.9,3.0]
[1745798982656,1.5694,1782.1,1781.1,5.61450788]
[1745798982861,1.5694,1782.1,1781.6,5.61278363]
[1745798983261,1.5694,1782.1,1781.7,5.61257541]
[1745798983475,1.5694,1782.1,1781.7,5.6124358]
[1745798983690,1.5694,1782.1,1781.6,3.0]
[1745798983866,1.5694,1782.1,1781.6,5.61263676]
[1745798984567,1.5694,1782.1,1781.7,5.61253401]
[1745798985301,1.5694,1782.1,1780.8,11.293]
[1745798985471,6.06,1782.0,1781.0,5.61455897]
[1745798985798,17.352,1782.0,1781.3,5.61386926]
[1745798985960,6.06,1782.0,1781.3,5.61386926]
[1745798986158,6.06,1782.0,1781.7,5.61257977]
[1745798986362,7.6294,1782.1,1781.6,5.61280472]
[1745798986561,7.6294,1782.1,1781.5,5.61313934]
[1745798986800,7.6294,1782.1,1781.6,5.61275158]
[1745798986975,7.6294,1782.1,1781.5,5.6130117]
[1745798987299,7.6294,1782.1,1781.6,5.61289637]
[1745798987795,7.6294,1782.1,1781.5,3.0]
[1745798987796,1.5694,1782.1,1781.5,3.0]
[1745798988098,1.5694,1782.1,1781.9,5.61169483]
[1745798988292,1.5137,1782.5,1782.2,5.61090222]
[1745798988496,1.5137,1782.5,1782.0,5.61150059]
[1745798988700,1.5137,1782.5,1782.1,5.61111307]
[1745798988899,1.5137,1782.5,1781.8,5.61230216]
[1745798989099,1.5137,1782.5,1782.0,3.0]
[1745798989263,1.5137,1782.5,1781.7,8.61250616]
[1745798989464,1.5137,1782.5,1782.0,3.0]
[1745798990191,0.00325151,1782.4,1782.0,3.0]
[1745798990414,0.00325151,1782.4,1782.0,8.61149469]
[1745798990815,0.00325151,1782.4,1782.0,3.0]
[1745798991003,0.00325151,1782.4,1781.9,3.0]
[1745798991210,0.00325151,1782.4,1781.8,3.0]
[1745798991409,0.00325151,1782.4,1781.8,8.61229621]
[1745798991613,0.00325151,1782.4,1782.0,3.0]
[1745798991932,0.00325151,1782.4,1781.5,5.61317641]
[1745798991933,0.00325151,1782.4,1781.9,3.0]
[1745798992138,0.00325151,1782.4,1782.2,5.61086926]
[1745798992303,0.00325151,1782.4,1782.0,5.61167227]
[1745798992503,0.00325151,1782.4,1782.1,3.0]
[1745798992703,0.00325151,1782.4,1782.0,3.0]
[1745798992924,0.00325151,1782.4,1782.0,8.6114942]
[1745798993122,0.00325151,1782.4,1781.9,3.0]
[1745798994193,0.00325151,1782.4,1781.9,8.61195387]
[1745798994395,0.00325151,1782.4,1781.9,3.0]
[1745798994912,0.00325151,1782.4,1781.4,5.61355875]
[1745798995096,6.06325151,1782.4,1781.5,8.61308021]
[1745798995289,0.30789188,1782.3,1781.5,3.0]
[1745798995492,0.30789188,1782.3,1781.7,5.61242189]
[1745798996031,6.06325151,1782.4,1781.7,5.61244794]
[1745798996199,6.06325151,1782.4,1781.3,3.41223545]
[1745798996397,6.06325151,1782.4,1781.6,5.61278503]
[1745798996697,6.06325151,1782.4,1781.7,5.61233625]
[1745798997330,6.06325151,1782.4,1781.8,5.61224296]
[1745798997504,6.06325151,1782.4,1782.0,5.61151099]
[1745798997918,6.06325151,1782.4,1781.6,1.5057]
[1745798998228,6.06325151,1782.4,1781.7,8.61249933]
[1745798998434,6.06325151,1782.4,1781.9,3.0]
[1745798998828,6.06325151,1782.4,1781.8,5.61216481]
[1745798999137,6.06325151,1782.4,1781.9,3.0]
[1745798999339,6.06325151,1782.4,1781.9,8.61192811]
[1745798999503,6.06325151,1782.4,1781.9,3.0]
[1745799000535,6.06325151,1782.4,1781.3,1.31858055]
[1745799000701,6.06325151,1782.4,1781.5,5.61303434]
[1745799000901,6.06325151,1782.4,1781.6,5.61278894]
[1745799001133,0.30840827,1782.3,1781.7,3.0]
[1745799001332,6.36840827,1782.3,1781.8,5.6122799]
[1745799001677,6.36840827,1782.3,1781.9,5.6118646]
[1745799001849,6.06,1782.3,1781.8,5.61213349]
[1745799003040,6.06,1782.3,1781.6,3.0]
[1745799003221,6.06,1782.3,1781.5,3.0]
[1745799003619,6.06,1782.3,1781.5,8.61320251]
[1745799003823,1.5755,1782.2,1780.9,28.134]
[1745799004029,1.5755,1782.0,1780.7,1.508]
[1745799004369,10.71553122,1781.9,1781.1,5.61435553]
[1745799004711,0.30853122,1781.9,1781.1,5.61435553]
[1745799004939,0.30853122,1781.9,1781.4,5.61335668]
[1745799005142,0.30853122,1781.9,1781.4,5.61332217]
[1745799005345,0.30853122,1781.9,1781.1,7.0374143]
[1745799005346,0.30853122,1781.9,1781.1,1.42290642]
[1745799005556,1.601,1781.7,1779.8,2.887303]
[1745799005767,1.601,1781.5,1780.0,1.639]
[1745799005926,1.601,1781.3,1779.9,5.91045503]
[1745799006127,19.841,1781.6,1780.3,5.61676295]
[1745799006128,1.601,1781.1,1780.3,5.61676295]
[1745799006353,1.601,1781.1,1780.5,5.61623546]
[1745799006553,1.601,1781.1,1780.4,5.6165724]
[1745799006757,1.601,1781.1,1780.4,3.0]
[1745799006945,1.601,1781.1,1780.3,8.6168165]
[1745799007460,1.601,1781.1,1780.4,5.61670956]
[1745799007663,1.601,1781.1,1780.3,8.61687265]
[1745799007833,0.30877896,1781.0,1780.3,8.61687265]
[1745799008161,0.30877896,1781.0,1780.5,8.61625407]
[1745799008370,0.30877896,1781.0,1780.6,5.61586002]
[1745799008728,0.30877896,1781.0,1780.7,3.0]
[1745799008955,1.601,1781.1,1780.7,3.0]
[1745799009372,1.601,1781.1,1780.7,8.61576293]
[1745799009542,1.601,1781.1,1780.7,3.0]
[1745799010153,1.601,1781.1,1780.5,5.61630435]
[1745799010464,1.601,1781.1,1780.4,3.0]
[1745799010767,1.601,1781.1,1780.6,5.61593248]
[1745799010971,1.601,1781.1,1780.7,3.0]
[1745799011173,1.601,1781.1,1780.8,5.61520847]
[1745799011370,1.5517,1781.6,1781.1,5.61431449]
[1745799011569,1.5517,1781.6,1781.2,5.61403394]
[1745799011770,1.5517,1781.6,1780.9,5.61505444]
[1745799011956,1.5517,1781.6,1781.0,8.61466715]
[1745799012157,1.5517,1781.6,1781.2,3.0]
[1745799012669,1.5517,1781.6,1781.1,3.0]
[1745799012872,1.5517,1781.6,1781.2,3.0]
[1745799013076,1.5517,1781.6,1781.3,5.61363124]
[1745799013283,0.00325151,1781.8,1781.2,3.0]
[1745799013484,0.00325151,1781.8,1781.5,5.61308537]
[1745799013641,0.00325151,1781.8,1781.6,5.61291767]
[1745799013842,0.00325151,1781.8,1781.7,8.61261716]
[1745799014237,1.5338,1782.9,1782.3,5.61053076]
[1745799014501,7.5938,1782.9,1782.2,5.61086192]
[1745799014690,7.5938,1782.9,1782.1,8.61125401]
[1745799014691,5.11752117,1782.8,1782.1,5.61122857]
[1745799014995,5.11752117,1782.8,1782.2,3.0]
[1745799015169,5.11752117,1782.8,1782.2,5.61100968]
[1745799015338,5.11752117,1782.8,1782.3,5.61072452]
[1745799015554,4.80859967,1782.8,1782.1,3.0]
[1745799016168,4.80859967,1782.8,1781.8,0.42217413]
[1745799016494,0.30880428,1782.7,1781.9,8.61177253]
[1745799017065,0.30880428,1782.7,1782.2,5.61102742]
[1745799017281,0.30880428,1782.7,1782.3,5.6106027]
[1745799017487,0.30880428,1782.7,1782.1,8.61131158]
[1745799017684,10.86859967,1782.8,1782.1,3.0]
[1745799017685,6.06,1782.8,1782.1,3.0]
[1745799018172,6.06,1782.8,1782.0,3.0]
[1745799018360,6.06,1782.8,1781.8,3.41173449]
[1745799018563,7.5938,1782.9,1782.2,3.0]
[1745799019203,7.5938,1782.9,1782.0,3.0]
[1745799019358,7.5938,1782.9,1782.3,3.0]
[1745799019558,7.5938,1782.9,1781.8,5.61202731]
[1745799019559,0.30868051,1782.8,1781.8,0.42360537]
[1745799019892,9.872,1782.7,1781.5,5.61320981]
[1745799020056,9.872,1782.7,1782.0,3.0]
[1745799020259,9.872,1782.6,1781.8,8.61220786]
[1745799020465,9.87,1782.7,1781.8,8.61213762]
[1745799020665,0.30868051,1782.5,1781.8,8.61225157]
[1745799020872,1.5709,1782.4,1781.0,1.629]
[1745799021093,1.5709,1782.2,1780.8,5.61531172]
[1745799021307,9.87,1782.1,1780.8,5.61543507]
[1745799021530,1.5709,1781.9,1780.8,5.61543507]
[1745799021678,6.06,1781.8,1780.8,5.61543507]
[1745799022191,6.06,1781.8,1781.0,3.0]
[1745799022512,6.06,1781.8,1780.7,3.0]
[1745799022680,1.5579,1781.6,1780.6,9.87]
[1745799022885,1.5579,1781.6,1780.4,4.87030649]
[1745799023224,6.06,1781.5,1780.4,5.28881833]
[1745799023512,10.18068051,1781.4,1780.6,3.0]
[1745799023800,10.18068051,1781.4,1780.6,8.61602595]
[1745799024007,10.18068051,1781.4,1780.5,5.61637785]
[1745799024008,10.18068051,1781.4,1780.4,5.28881833]
[1745799024236,10.18068051,1781.4,1780.5,5.61622061]
[1745799024567,10.18068051,1781.4,1780.6,3.0]
[1745799025081,1.5364,1781.3,1780.1,9.87]
[1745799025270,15.932,1781.4,1779.8,1.6342]
[1745799025271,1.5364,1781.1,1779.8,1.6342]
[1745799025468,1.5364,1780.9,1779.9,8.61822802]
[1745799025712,11.1334,1780.9,1780.0,5.61796943]
[1745799025881,9.597,1780.8,1780.1,5.61757214]
[1745799026225,1.5364,1780.9,1780.3,3.0]
[1745799026421,1.5927,1781.3,1781.1,3.0]
[1745799026572,1.6548,1781.9,1781.1,5.61425256]
[1745799026774,1.6548,1781.9,1780.9,8.61512481]
[1745799026982,1.6548,1781.9,1781.0,3.0]
[1745799027402,1.6548,1781.9,1780.8,5.61530585]
[1745799027620,1.6548,1781.9,1780.9,8.61513437]
[1745799028721,1.6548,1781.9,1780.9,8.61486918]
[1745799028883,1.6548,1781.9,1781.3,5.61367966]
[1745799029083,1.6548,1781.9,1781.4,5.61353878]
[1745799029431,1.6548,1781.9,1781.2,3.0]
[1745799029583,1.6548,1781.9,1781.3,3.0]
[1745799029778,1.6548,1781.9,1781.1,0.41450151]
[1745799029977,1.6548,1781.9,1781.3,8.6137758]
[1745799030583,1.6548,1781.9,1780.7,1.5589]
[1745799030772,1.6548,1781.9,1780.9,3.0]
[1745799030773,0.30815843,1781.8,1780.9,3.0]
[1745799031184,1.6283,1781.6,1780.7,3.0]
[1745799031379,1.6283,1781.6,1780.8,3.0]
[1745799031578,1.6283,1781.6,1780.6,6.03823052]
[1745799031796,1.6283,1781.6,1780.6,8.61595033]
[1745799031991,1.6283,1781.6,1780.7,0.23404738]
[1745799032212,7.6883,1781.6,1780.7,0.23404738]
[1745799032627,1.635,1781.5,1780.7,0.23404738]
[1745799032800,1.635,1781.2,1780.7,0.23404738]
[1745799032986,1.635,1781.0,1779.7,15.21876621]
[1745799033192,1.635,1780.8,1779.5,0.43059742]
[1745799033395,6.06,1780.7,1779.8,0.21454343]
[1745799033715,1.6435,1780.5,1779.8,0.21454343]
[1745799033921,15.66,1780.4,1779.8,0.21454343]
[1745799034219,15.96799745,1780.4,1779.8,0.21454343]
[1745799034717,6.06,1780.4,1779.8,0.21454343]
[1745799034880,1.6435,1780.5,1779.8,0.21454343]
[1745799035081,1.6611,1781.0,1780.4,5.61668024]
[1745799035278,1.6611,1781.0,1780.6,3.0]
[1745799035500,1.6611,1781.0,1780.7,0.20904736]
[1745799037401,1.6611,1781.0,1779.9,5.61810573]
[1745799037620,6.06,1780.9,1780.0,5.61769243]
[1745799038019,9.321,1780.8,1780.1,3.0]
[1745799038545,9.321,1780.8,1779.9,8.61828108]
[1745799039044,1.5108,1780.7,1779.8,5.61842198]
[1745799039352,1.5108,1780.7,1779.6,1.5338]
[1745799039353,1.5108,1780.6,1779.9,0.00413151]
[1745799039715,1.5108,1780.6,1779.9,5.62242006]
[1745799040340,1.5108,1780.6,1780.0,5.61789231]
[1745799040506,1.5108,1780.6,1780.1,0.00400527]
[1745799040705,1.5108,1780.6,1779.9,3.0]
[1745799041060,1.5108,1780.6,1780.0,0.00406839]
[1745799041556,9.322,1780.5,1779.7,5.61870586]
[1745799041732,9.322,1780.5,1779.8,0.20692984]
[1745799042250,1.5108,1780.6,1780.0,5.61795671]
[1745799042551,1.5108,1780.6,1780.1,5.61751157]
[1745799042753,1.5108,1780.6,1780.2,0.00394215]
[1745799042964,1.5108,1780.6,1779.8,3.20273519]
[1745799043249,1.5108,1780.6,1779.9,0.00413151]
[1745799043621,1.609,1780.4,1779.9,0.00413151]
[1745799044149,1.609,1780.4,1779.8,5.61859262]
[1745799044355,1.609,1780.4,1779.9,0.17284422]
[1745799045618,1.609,1780.4,1779.5,5.61939876]
[1745799045821,7.669,1780.4,1780.0,0.17277517]
[1745799046057,7.669,1780.4,1779.4,5.86412377]
[1745799046253,1.5258,1780.3,1779.5,3.0]
[1745799046555,6.06,1780.2,1779.5,0.17730618]
[1745799046798,1.5258,1780.1,1779.5,0.17730618]
[1745799046939,9.061,1780.0,1779.5,0.17730618]
[1745799047155,6.06,1779.9,1779.5,0.17730618]
[1745799047364,1.6238,1779.8,1779.3,0.5]
[1745799047557,1.6238,1779.8,1779.4,0.17730617]
[1745799047758,6.06,1779.7,1779.3,0.5]
[1745799047923,6.06,1779.7,1779.4,0.17730617]
[1745799048319,7.6838,1779.8,1779.4,0.17730617]
[1745799049029,7.6838,1779.8,1779.3,0.5]
[1745799049472,7.6838,1779.8,1779.4,0.17730617]
[1745799050031,7.6838,1779.8,1779.3,0.5]
[1745799050231,1.6604,1779.6,1779.5,0.17730618]
[1745799050514,1.6637,1779.5,1779.3,0.5]
[1745799050719,6.06,1779.4,1779.3,0.5]
[1745799051346,8.03068236,1779.4,1779.3,0.5]
[1745799052427,7.7237,1779.4,1779.3,0.5]
[1745799052753,6.06,1779.9,1779.3,0.50363361]
[1745799052953,1.5944,1779.8,1779.3,0.50363361]
[1745799053158,1.5944,1779.8,1779.3,0.5]
[1745799053356,1.6554,1779.6,1779.3,0.5]
[1745799053721,7.7154,1779.6,1779.3,0.5]
[1745799054856,6.06,1779.6,1779.3,0.5]
[1745799055066,6.06,1779.6,1779.4,0.00357044]
[1745799055271,1.5549,1780.0,1779.4,0.00357044]
[1745799055471,7.5954,1780.3,1779.4,1.03870686]
[1745799055768,16.6594,1780.3,1779.5,0.17307831]
[1745799055945,7.5954,1780.3,1779.4,1.03870686]
[1745799056143,7.5954,1780.3,1779.6,5.0833]
[1745799056453,6.06,1780.3,1779.6,6.14651538]
[1745799056649,6.06,1780.5,1779.6,6.14651538]
[1745799056853,16.422,1780.6,1779.6,6.14651538]
[1745799057163,16.422,1780.6,1779.6,2.02200686]
[1745799057331,16.422,1780.6,1779.5,0.17307831]
[1745799057539,0.30706636,1780.5,1779.5,0.17307831]
[1745799058345,8.804,1780.4,1779.5,0.17307831]
[1745799058541,0.30706636,1780.5,1779.5,0.17307831]
[1745799058751,8.804,1780.4,1779.5,0.17307831]
[1745799058941,8.804,1780.3,1779.5,0.59425683]
[1745799059325,8.804,1780.4,1779.6,0.55]
[1745799059526,16.422,1780.6,1779.7,0.00338097]
[1745799059739,7.618,1780.6,1779.6,0.55]
[1745799059940,8.804,1780.5,1779.7,0.16573534]
[1745799060163,8.804,1780.5,1779.5,0.48870686]
[1745799060354,8.804,1780.5,1779.6,0.16521013]
[1745799060757,7.618,1780.6,1779.4,3.55]
[1745799060758,8.804,1780.4,1779.4,3.55]
[1745799061064,6.06,1780.3,1779.5,0.16508097]
[1745799061264,10.3069,1780.2,1779.5,0.16508097]
[1745799061431,10.3069,1780.2,1779.3,0.5]
[1745799061632,1.5029,1780.2,1779.6,0.1657382]
[1745799061968,6.06,1780.3,1779.8,0.55]
[1745799062168,6.06,1780.8,1779.9,0.16658778]
[1745799062356,14.864,1780.8,1779.9,0.65529464]
[1745799062533,6.06,1780.8,1779.9,0.48870686]
[1745799062737,6.06,1780.8,1780.0,0.55]
[1745799062968,14.864,1780.9,1780.1,1.6664]
[1745799063232,14.864,1780.9,1780.2,0.16984248]
[1745799063440,6.06,1780.9,1780.2,0.16984248]
[1745799063951,6.06,1780.9,1780.3,0.55]
[1745799064465,8.804,1781.3,1780.3,1.03870686]
[1745799064673,10.358,1781.4,1780.4,2.09910686]
[1745799064971,1.554,1781.7,1780.6,1.6104]
[1745799065139,6.06,1781.8,1780.7,1.19251208]
[1745799065349,8.804,1781.9,1780.7,1.19251208]
[1745799065553,8.804,1781.9,1780.7,1.03870686]
[1745799065760,8.804,1781.9,1780.8,0.15380522]
[1745799065973,8.804,1781.9,1780.8,0.64251208]
[1745799066282,8.804,1781.9,1780.8,0.15380522]
[1745799066283,1.5469,1781.7,1780.8,0.15380522]
[1745799066579,0.3081226,1781.6,1780.8,0.15380522]
[1745799067483,10.3489,1781.7,1780.8,0.15380522]
[1745799067680,1.5469,1781.7,1780.8,0.15380522]
[1745799067888,10.3489,1781.7,1780.8,0.15380522]
[1745799070990,6.06,1781.6,1780.8,0.15380522]
[1745799071351,4.6401,1781.5,1780.3,1.6157]
[1745799071682,0.30730416,1781.4,1779.8,0.55]
[1745799071844,14.583,1781.3,1779.9,1.6157]
[1745799072050,8.523,1781.2,1779.9,2.22697121]
[1745799072280,6.523,1781.2,1779.9,2.22697121]
[1745799072668,6.523,1781.2,1779.9,2.16259159]
[1745799072985,23.375,1781.2,1779.9,2.16259159]
[1745799073182,1.5437,1781.1,1779.9,1.73826435]
[1745799073489,8.523,1781.0,1780.0,0.55]
[1745799073783,6.06,1781.0,1780.0,0.55]
[1745799074083,14.583,1781.0,1780.0,0.55]
[1745799074988,14.583,1781.0,1780.1,0.00312845]
[1745799075987,14.583,1781.0,1779.9,1.73500966]
[1745799076287,7.6342,1780.9,1779.6,1.6031]
[1745799076488,6.36693983,1780.8,1779.6,1.6031]
[1745799076663,6.36693983,1780.8,1779.7,0.11241243]
[1745799077191,1.5934,1780.6,1779.3,2.0335]
[1745799077493,1.5934,1780.4,1779.8,0.11972152]
[1745799077798,22.914,1780.3,1779.3,5.0335]
[1745799077958,8.524,1780.2,1779.9,0.12209158]
[1745799078158,6.06,1780.1,1779.3,5.0335]
[1745799078354,6.06,1780.1,1779.3,0.5]
[1745799078355,1.6642,1780.0,1779.3,0.5]
[1745799078866,6.06,1779.9,1779.3,0.5]
[1745799079407,6.06,1779.9,1779.4,0.00357044]
[1745799079556,6.06,1779.9,1779.3,0.5]
[1745799079752,6.06,1779.9,1779.5,0.00350727]
[1745799079753,8.524,1779.8,1779.5,0.00350727]
[1745799079991,8.524,1779.8,1779.3,0.5]
[1745799080155,6.06,1779.9,1779.6,0.00344412]
[1745799080485,8.526,1779.8,1779.4,0.12440739]
[1745799080861,6.06,1779.9,1779.3,0.5]
[1745799081061,14.586,1779.9,1779.5,0.00350727]
[1745799081263,14.586,1779.9,1779.4,0.00357044]
[1745799081462,14.586,1779.9,1779.3,0.5]
[1745799081662,14.586,1779.9,1779.5,0.00350727]
[1745799081851,14.586,1779.9,1779.4,0.00357044]
[1745799082056,14.586,1779.9,1779.6,0.00344412]
[1745799082269,14.586,1779.9,1779.3,0.5]
[1745799082594,8.526,1779.8,1779.3,0.5]
[1745799082886,8.832969,1779.8,1779.4,0.00357044]
[1745799083089,6.06,1779.7,1779.4,0.00357044]
[1745799083291,6.06,1779.7,1779.3,0.5]
[1745799083492,6.06,1779.3,1778.9,0.0488758]
[1745799083659,8.527,1779.2,1778.9,0.0488758]
[1745799085000,6.06,1779.2,1778.9,0.0488758]
[1745799085359,6.06,1779.5,1778.9,0.0488758]
[1745799085557,6.06,1779.5,1779.0,0.12351832]
[1745799085954,6.06,1779.5,1779.0,1.78631832]
[1745799086161,14.587,1779.6,1779.0,1.78631832]
[1745799086486,6.06,1779.6,1779.0,1.78631832]
[1745799086686,14.588,1779.6,1779.0,1.78631832]
[1745799087468,14.588,1779.6,1779.0,7.40740504]
[1745799087789,6.06,1779.6,1779.1,8.62069468]
[1745799087994,6.06,1779.6,1779.1,8.62446624]
[1745799088196,6.06,1779.6,1779.2,5.62037945]
[1745799088402,6.06,1779.6,1779.3,8.62006595]
[1745799088696,6.06,1779.8,1779.3,0.00363361]
[1745799088900,8.274,1780.1,1779.6,1.6257]
[1745799089204,8.274,1780.1,1779.7,0.00338097]
[1745799089371,8.274,1780.1,1779.6,1.6257]
[1745799089578,8.274,1780.1,1779.8,0.11876473]
[1745799089989,8.274,1780.1,1779.6,1.6257]
[1745799090404,8.274,1780.1,1779.7,0.11538376]
[1745799090701,8.274,1780.1,1779.2,1.6535]
[1745799090702,6.06,1780.0,1779.2,1.6535]
[1745799090923,6.06,1780.0,1779.8,0.10305361]
[1745799091066,6.06,1780.0,1778.9,10.32084326]
[1745799091266,8.274,1779.9,1779.1,5.62076432]
[1745799091501,14.334,1780.0,1779.0,3.0]
[1745799091703,8.274,1779.9,1779.4,3.0]
[1745799091905,6.06,1780.0,1779.5,1.6475]
[1745799092113,8.274,1780.2,1779.5,7.26684789]
[1745799092399,8.274,1780.2,1779.5,4.6475]
[1745799092762,6.06,1780.3,1779.6,5.619228]
[1745799092967,8.275,1780.3,1779.7,3.0]
[1745799093282,8.275,1780.3,1779.5,10.2669313]
[1745799094102,8.275,1780.3,1779.5,1.6475]
[1745799094303,6.06,1780.6,1779.6,2.1483]
[1745799094475,6.06,1780.6,1780.4,4.5983]
[1745799094676,14.335,1781.1,1780.4,1.5983]
[1745799094980,6.06,1781.1,1780.6,5.61598809]
[1745799095176,6.06,1781.1,1780.4,10.21478733]
[1745799095492,6.06,1781.1,1780.6,3.0]
[1745799096010,6.06,1781.1,1780.4,10.21498248]
[1745799098029,6.06,1781.1,1780.4,15.83154185]
[1745799098185,6.06,1781.1,1780.4,10.21485937]
[1745799098527,18.02454175,1781.2,1780.4,10.21485937]
[1745799098688,14.335,1781.2,1780.4,10.21485937]
[1745799099088,14.335,1781.2,1780.4,4.5983]
[1745799100120,14.335,1781.2,1780.4,1.5983]
[1745799100274,14.335,1781.2,1780.4,4.5983]
[1745799100475,1.5365,1781.1,1780.1,1.5484]
[1745799100691,6.06,1781.2,1780.2,3.0]
[1745799100894,0.3077195,1781.0,1780.3,5.61703083]
[1745799101099,0.3077195,1781.0,1780.5,3.0]
[1745799101383,0.3077195,1781.0,1780.6,3.0]
[1745799101812,6.06,1781.2,1780.7,1.6579]
[1745799103233,6.06,1781.3,1780.7,4.6579]
[1745799103534,6.06,1781.5,1781.1,8.61432318]
[1745799103739,14.08,1781.8,1781.3,3.0]
[1745799103936,6.06,1781.8,1781.3,10.11421837]
[1745799104139,6.06,1781.8,1781.4,3.0]
[1745799104349,6.06,1781.8,1781.4,8.61355475]
[1745799104849,8.019,1782.1,1781.4,8.61355475]
[1745799105018,8.019,1782.1,1781.4,9.66720897]
[1745799105346,8.019,1782.1,1781.3,4.5004]
[1745799105814,8.019,1782.1,1781.4,3.0]
[1745799106333,8.019,1782.1,1781.3,1.5004]
[1745799106540,1.5416,1781.9,1781.0,1.5553]
[1745799106701,6.06,1781.8,1781.0,1.5553]
[1745799109267,6.06,1781.8,1781.0,2.27233068]
[1745799109742,6.06,1781.8,1781.1,3.0]
[1745799109940,8.017,1781.7,1781.1,3.0]
[1745799110167,8.017,1781.7,1781.0,2.27233068]
[1745799110366,8.017,1781.7,1780.7,1.6398]
[1745799110882,6.06,1781.6,1780.7,1.6398]
[1745799111859,6.06,1781.6,1780.8,3.0]
[1745799112492,6.06,1781.6,1780.7,7.25541783]
[1745799112493,8.016,1781.5,1780.7,1.6398]
[1745799112669,7.6835,1781.4,1780.3,1.5173]
[1745799112974,1.6235,1781.2,1780.0,1.5173]
[1745799113171,1.6235,1781.0,1779.7,1.5173]
[1745799113375,14.076,1780.9,1779.7,7.84969384]
[1745799113536,14.076,1780.9,1779.7,2.23093521]
[1745799113971,7.94286222,1780.8,1779.7,1.5173]
[1745799114153,22.91,1780.7,1779.7,1.5173]
[1745799114879,0.30716222,1780.6,1779.7,1.5173]
[1745799115085,6.06,1780.5,1779.7,1.5173]
[1745799115491,1.6221,1780.4,1779.3,1.6153]
[1745799115704,7.76,1780.3,1779.3,1.6153]
[1745799116003,8.06716222,1780.3,1779.3,1.6153]
[1745799116766,0.30716222,1780.2,1779.3,1.6153]
[1745799118104,0.30716222,1780.2,1778.9,1.6683758]
[1745799118105,7.7191,1780.1,1778.9,1.6683758]
[1745799118303,6.06,1780.0,1778.9,1.6683758]
[1745799118610,6.36716222,1780.0,1779.0,5.62097156]
[1745799118811,6.36716222,1780.0,1779.2,0.55]
[1745799119108,4.80859967,1781.7,1779.6,3.0]
[1745799119109,7.762,1780.3,1779.6,3.0]
[1745799119297,7.762,1780.3,1779.6,8.61916618]
[1745799119863,7.762,1780.3,1779.6,8.61908803]
[1745799120108,7.762,1780.3,1779.6,8.61897408]
[1745799120504,6.06,1780.2,1779.9,3.0]
[1745799120693,6.06,1780.2,1780.1,3.0]
[1745799120893,6.06,1780.6,1780.1,3.0]
[1745799121392,6.06,1780.6,1780.0,1.5638]
[1745799121769,6.06,1780.6,1780.1,3.0]
[1745799122002,6.06,1780.6,1780.0,4.5638]
[1745799122330,6.06,1780.6,1780.0,1.5638]
[1745799122539,6.06,1780.6,1779.7,10.25936132]
[1745799122725,6.06,1780.6,1779.8,1.02593613]
[1745799122931,6.06,1780.6,1779.7,1.6407]
[1745799123099,6.06,1780.6,1779.3,1.6204]
[1745799123303,1.81569034,1780.5,1779.3,1.6204]
[1745799123498,1.81569034,1780.5,1779.3,10.24057615]
[1745799124039,1.81569034,1780.5,1779.5,3.0]
[1745799124238,1.81569034,1780.5,1779.3,7.24032197]
[1745799124540,0.30789034,1780.4,1779.4,9.34371618]
[1745799124741,8.07089034,1780.4,1779.3,1.6204]
[1745799124942,1.5889,1780.2,1779.0,7.25189993]
[1745799125241,6.06,1780.1,1779.3,5.62000506]
[1745799125437,6.06,1780.1,1779.4,3.0]
[1745799126250,6.06,1780.1,1779.2,8.62046731]
[1745799126459,6.06,1780.1,1779.0,7.66692654]
[1745799126757,6.06,1780.1,1779.3,3.0]
[1745799127050,6.06,1780.1,1779.2,5.6204791]
[1745799127051,6.06,1780.1,1779.2,3.0]
[1745799127262,6.06,1780.1,1779.3,3.0]
[1745799127431,6.06,1780.1,1779.2,8.62045917]
[1745799128056,6.06,1780.1,1779.0,1.631]
[1745799128358,1.90637556,1780.0,1778.9,0.0488758]
[1745799128648,3.0,1779.9,1778.9,0.0488758]
[1745799128857,7.6100242,1778.8,1778.0,2.86739512]
[1745799129019,13.7761242,1778.7,1778.0,2.86739512]
[1745799129217,1.5989,1778.5,1777.6,2.81909147]
[1745799129418,6.0111242,1778.4,1777.6,2.81909147]
[1745799130051,6.0111242,1778.4,1777.8,3.0]
[1745799130251,6.0111242,1778.4,1777.6,0.7689398]
[1745799130455,6.0111242,1778.4,1777.4,6.0544677]
[1745799130625,6.0111242,1778.4,1777.6,5.62535567]
[1745799130825,7.765,1778.3,1777.3,4.5175838]
[1745799131140,7.765,1778.3,1777.8,3.0]
[1745799131643,7.765,1778.3,1777.5,5.62577511]
[1745799131841,7.765,1778.3,1777.6,3.0]
[1745799132863,7.77031,1778.3,1777.6,3.0]
[1745799133228,0.00531,1778.3,1778.0,5.62413226]
[1745799133433,0.00531,1778.3,1778.2,3.0]
[1745799133730,0.00531,1778.3,1778.2,9.17366437]